fUSD/lending_fUSD_20250302
["ID","MTS","AMOUNT","RATE_DAILY","PERIOD"]
[355154415,1740937841287,-500.0,0.00024798,2]
[355154417,1740937841297,-500.0,0.00024798,2]
[355154419,1740937841307,-500.0,0.00024798,2]
[355154421,1740937841317,-500.0,0.00024798,2]
[355154423,1740937841327,-500.0,0.00024798,2]
[355154425,1740937841337,-502.79441572,0.00024798,2]
[355154427,1740937841347,-500.0,0.00024798,2]
[355154429,1740937841357,-500.0,0.00024798,2]
[355154431,1740937841367,-500.0,0.00024798,2]
[355154433,1740937841377,-500.0,0.00024798,2]
[355154435,1740937841386,-500.90290976,0.00024798,2]
[355154437,1740937841396,-500.0,0.00024798,2]
[355154439,1740937841406,-500.0,0.00024798,2]
[355154440,1740937841415,-500.0,0.00024798,2]
[355154442,1740937841429,-500.0,0.00024798,2]
[355154445,1740937841440,-500.0,0.00024798,2]
[355154447,1740937841450,-500.0,0.00024798,2]
[355154449,1740937841460,-500.0,0.00024798,2]
[355154451,1740937841470,-618.10304073,0.00024798,2]
[355154453,1740937841479,-500.0,0.00024798,2]
[355154455,1740937841491,-500.0,0.00024798,2]
[355154457,1740937841500,-500.0,0.00024798,2]
[355154459,1740937841510,-500.0,0.00024798,2]
[355154461,1740937841520,-500.0,0.00024798,2]
[355154463,1740937841529,-500.0,0.00024798,2]
[355154465,1740937841538,-424.22949166,0.00024798,2]
[355154467,1740937841548,-500.0,0.00024798,2]
[355154469,1740937841558,-500.0,0.00024798,2]
[355154471,1740937841568,-500.0,0.00024798,2]
[355154473,1740937841577,-500.0,0.00024798,2]
[355154475,1740937841587,-500.0,0.00024798,2]
[355154477,1740937841596,-500.0,0.00024798,2]
[355154479,1740937841606,-500.0,0.00024798,2]
[355154481,1740937841616,-500.0,0.00024798,2]
[355154483,1740937841626,-500.0,0.00024798,2]
[355154485,1740937841636,-500.0,0.00024798,2]
[355154487,1740937841646,-500.0,0.00024798,2]
[355154489,1740937841655,-500.0,0.00024798,2]
[355154491,1740937841665,-500.0,0.00024798,2]
[355154493,1740937841679,-500.0,0.00024798,2]
[355154495,1740937841688,-500.0,0.00024798,2]
[355154497,1740937841698,-500.0,0.00024798,2]
[355154499,1740937841707,-500.0,0.00024798,2]
[355154501,1740937841718,-500.0,0.00024798,2]
[355154503,1740937841728,-480.81507914,0.00024798,2]
[355154505,1740937841739,-500.0,0.00024798,2]
[355154514,1740937841750,-500.0,0.00024798,2]
[355154516,1740937841836,-500.0,0.00024798,2]
[355154518,1740937841846,-500.0,0.00024798,2]
[355154521,1740937841858,-500.0,0.00024798,2]
[355154523,1740937841868,-500.0,0.00024798,2]
[355154525,1740937841878,-500.0,0.00024798,2]
[355154527,1740937841888,-500.0,0.00024798,2]
[355154529,1740937841898,-500.0,0.00024798,2]
[355154531,1740937841909,-500.0,0.00024798,2]
[355154533,1740937841919,-500.0,0.00024798,2]
[355154535,1740937841932,-500.0,0.00024798,2]
[355154537,1740937841946,-500.0,0.00024798,2]
[355154538,1740937841956,-500.0,0.00024798,2]
[355154540,1740937841966,-500.0,0.00024798,2]
[355154542,1740937841976,-500.0,0.00024798,2]
[355154545,1740937841986,-500.0,0.00024798,2]
[355154547,1740937841996,-500.0,0.00024798,2]
[355154549,1740937842007,-245.26359669,0.00024798,2]
[355154551,1740937842020,-254.73640331,0.00024798,2]
[355154553,1740937842031,-800.0,0.000248,9]
[355154555,1740937842040,-190.19867322,0.0002483,2]
[355154557,1740937842050,-170.96,0.00024853,2]
[355154559,1740937842059,-500.0,0.00024873,2]
[355154561,1740937842069,-313.12614498,0.00024873,2]
[355154563,1740937842078,-254.27877849,0.00024888,2]
[355154565,1740937842090,-1076.7600001,0.00024888,2]
[355154567,1740937842102,-900.09575336,0.00024888,2]
[355154569,1740937842111,-177.08082207,0.0002489,2]
[355154571,1740937842121,-175.09103724,0.00024895,2]
[355154573,1740937842131,-782.1941768,0.00024895,2]
[355154575,1740937842140,-782.1941768,0.00024895,2]
[355154577,1740937842149,-56.54403373,0.00024895,2]
[355154580,1740937842161,-725.65014307,0.00024895,2]
[355154582,1740937842173,-782.1941768,0.00024895,2]
[355154584,1740937842185,-579.95262013,0.00024895,2]
[355154586,1740937842201,-202.24155667,0.00024895,2]
[355154588,1740937842212,-782.1941768,0.00024895,2]
[355154590,1740937842222,-280.65627992,0.00024895,2]
[355154592,1740937842234,-501.53789688,0.00024895,2]
[355154594,1740937842244,-782.1941768,0.00024895,2]
[355154596,1740937842255,-782.1941768,0.00024895,2]
[355154598,1740937842264,-782.1941768,0.00024895,2]
[355154600,1740937842274,-782.1941768,0.00024895,2]
[355154602,1740937842283,-782.1941768,0.00024895,2]
[355154604,1740937842293,-782.1941768,0.00024895,2]
[355154606,1740937842303,-782.1941768,0.00024895,2]
[355154608,1740937842312,-782.1941768,0.00024895,2]
[355154610,1740937842322,-810.63760141,0.00024895,2]
[355154612,1740937842331,-810.63760141,0.00024895,2]
[355154614,1740937842341,-810.63760141,0.00024895,2]
[355154616,1740937842350,-810.63760141,0.00024895,2]
[355154618,1740937842360,-810.63760141,0.00024895,2]
[355154620,1740937842370,-810.63760141,0.00024895,2]
[355154622,1740937842379,-810.63760141,0.00024895,2]
[355154624,1740937842388,-810.63760141,0.00024895,2]
[355154626,1740937842397,-942.74150685,0.00024895,2]
[355154628,1740937842406,-942.74150685,0.00024895,2]
[355154630,1740937842415,-500.0,0.00024896,2]
[355154632,1740937842428,-500.0,0.00024896,2]
[355154634,1740937842438,-501.45814389,0.00024896,2]
[355154636,1740937842447,-500.0,0.00024896,2]
[355154638,1740937842456,-500.62103057,0.00024896,2]
[355154640,1740937842465,-501.36112653,0.00024896,2]
[355154642,1740937842474,-501.49337371,0.00024896,2]
[355154644,1740937842483,-500.90332981,0.00024896,2]
[355154646,1740937842492,-500.36590058,0.00024896,2]
[355154648,1740937842501,-554.30340314,0.00024896,2]
[355154650,1740937842510,-500.0,0.00024896,2]
[355154652,1740937842520,-501.28800312,0.00024896,2]
[355154654,1740937842530,-501.42616355,0.00024896,2]
[355154656,1740937842539,-588.82,0.00024896,2]
[355154657,1740937842549,-287.2518729,0.00024896,2]
[355154659,1740937842558,-507.63385221,0.00024896,2]
[355154661,1740937842568,-504.68993788,0.00024896,2]
[355154663,1740937842578,-500.0,0.00024896,2]
[355154665,1740937842587,-501.25414693,0.00024896,2]
[355154668,1740937842597,-501.35472523,0.00024896,2]
[355154669,1740937842607,-500.0,0.00024896,2]
[355154671,1740937842616,-500.0,0.00024896,2]
[355154673,1740937842626,-500.0,0.00024896,2]
[355154675,1740937842636,-500.0,0.00024896,2]
[355154677,1740937842646,-500.0,0.00024896,2]
[355154679,1740937842656,-500.0,0.00024896,2]
[355154681,1740937842665,-290.71696068,0.00024896,2]
[355154683,1740937842679,-500.0,0.00024896,2]
[355154685,1740937842688,-500.0,0.00024896,2]
[355154687,1740937842698,-500.0,0.00024896,2]
[355154689,1740937842707,-500.0,0.00024896,2]
[355154691,1740937842717,-500.0,0.00024896,2]
[355154693,1740937842727,-500.0,0.00024896,2]
[355154695,1740937842736,-500.0,0.00024896,2]
[355154697,1740937842746,-500.0,0.00024896,2]
[355154699,1740937842756,-523.40470587,0.00024896,2]
[355154701,1740937842766,-500.0,0.00024896,2]
[355154703,1740937842776,-454.98110996,0.00024896,2]
[355154706,1740937842785,-500.0,0.00024896,2]
[355154708,1740937842794,-190.99533952,0.00024896,2]
[355154710,1740937842804,-641.23,0.00024896,2]
[355154711,1740937842814,-500.0,0.00024896,2]
[355154712,1740937842824,-506.41520772,0.00024896,2]
[355154714,1740937842835,-231.06541932,0.00024896,2]
[355154716,1740937842844,-553.15,0.00024896,2]
[355154718,1740937842854,-502.33708255,0.00024896,2]
[355154721,1740937842863,-500.0,0.00024896,2]
[355154724,1740937842873,-500.0,0.00024896,2]
[355154727,1740937842883,-500.0,0.00024896,2]
[355154729,1740937842892,-500.0,0.00024896,2]
[355154731,1740937842901,-500.0,0.00024896,2]
[355154733,1740937842911,-500.0,0.00024896,2]
[355154735,1740937842924,-500.0,0.00024896,2]
[355154738,1740937842933,-453.63395228,0.00024896,2]
[355154741,1740937842945,-504.63740322,0.00024896,2]
[355154744,1740937842955,-500.0,0.00024896,2]
[355154747,1740937842964,-500.0,0.00024896,2]
[355154750,1740937842974,-500.0,0.00024896,2]
[355154754,1740937842983,-500.0,0.00024896,2]
[355154759,1740937842993,-421.51758981,0.00024896,2]
[355154764,1740937843003,-500.0,0.00024896,2]
[355154768,1740937843012,-500.0,0.00024896,2]
[355154772,1740937843022,-500.0,0.00024896,2]
[355154775,1740937843031,-509.41621109,0.00024896,2]
[355154781,1740937843041,-500.0,0.00024896,2]
[355154787,1740937843050,-500.0,0.00024896,2]
[355154793,1740937843060,-498.57056652,0.00024896,2]
[355154799,1740937843070,-501.61004261,0.00024896,2]
[355154804,1740937843079,-520.82,0.00024896,2]
[355154809,1740937843087,-500.0,0.00024896,2]
[355154813,1740937843096,-500.0,0.00024896,2]
[355154817,1740937843106,-500.0,0.00024896,2]
[355154820,1740937843115,-500.0,0.00024896,2]
[355154824,1740937843125,-500.0,0.00024896,2]
[355154828,1740937843134,-613.72174783,0.00024896,2]
[355154831,1740937843144,-549.79,0.00024896,2]
[355154834,1740937843154,-500.0,0.00024896,2]
[355154837,1740937843163,-500.0,0.00024896,2]
[355154839,1740937843173,-502.9953578,0.00024896,2]
[355154842,1740937843184,-500.0,0.00024896,2]
[355154844,1740937843193,-320.52724045,0.00024896,2]
[355154848,1740937843203,-583.9,0.00024896,2]
[355154852,1740937843212,-500.0,0.00024896,2]
[355154855,1740937843221,-500.0,0.00024896,2]
[355154859,1740937843230,-391.90088291,0.00024896,2]
[355154863,1740937843240,-500.0,0.00024896,2]
[355154866,1740937843250,-500.0,0.00024896,2]
[355154870,1740937843260,-500.0,0.00024896,2]
[355154873,1740937843270,-500.0,0.00024896,2]
[355154876,1740937843279,-500.0,0.00024896,2]
[355154879,1740937843289,-500.0,0.00024896,2]
[355154882,1740937843298,-500.0,0.00024896,2]
[355154884,1740937843308,-501.94992629,0.00024896,2]
[355154887,1740937843318,-240.13967082,0.00024896,2]
[355154890,1740937843328,-501.23160092,0.00024896,2]
[355154892,1740937843337,-500.0,0.00024896,2]
[355154894,1740937843347,-500.0,0.00024896,2]
[355154896,1740937843357,-500.0,0.00024896,2]
[355154898,1740937843366,-500.0,0.00024896,2]
[355154900,1740937843376,-500.0,0.00024896,2]
[355154902,1740937843385,-500.0,0.00024896,2]
[355154904,1740937843396,-500.0,0.00024896,2]
[355154906,1740937843406,-500.0,0.00024896,2]
[355154908,1740937843416,-500.0,0.00024896,2]
[355154910,1740937843429,-500.0,0.00024896,2]
[355154912,1740937843439,-500.0,0.00024896,2]
[355154914,1740937843450,-500.0,0.00024896,2]
[355154916,1740937843461,-500.0,0.00024896,2]
[355154918,1740937843471,-500.0,0.00024896,2]
[355154920,1740937843480,-500.0,0.00024896,2]
[355154922,1740937843490,-500.0,0.00024896,2]
[355154924,1740937843501,-500.0,0.00024896,2]
[355154926,1740937843511,-500.0,0.00024896,2]
[355154928,1740937843521,-500.0,0.00024896,2]
[355154930,1740937843531,-500.0,0.00024896,2]
[355154932,1740937843542,-500.0,0.00024896,2]
[355154933,1740937843551,-500.0,0.00024896,2]
[355154935,1740937843561,-500.0,0.00024896,2]
[355154939,1740937843583,-501.64865322,0.00024896,2]
[355154941,1740937843594,-500.0,0.00024896,2]
[355154944,1740937843605,-550.36,0.00024896,2]
[355154946,1740937843615,-500.0,0.00024896,2]
[355154949,1740937843626,-500.0,0.00024896,2]
[355154951,1740937843636,-505.78098895,0.00024896,2]
[355154953,1740937843646,-500.0,0.00024896,2]
[355154955,1740937843657,-500.0,0.00024896,2]
[355154957,1740937843667,-627.32,0.00024896,2]
[355154959,1740937843682,-500.0,0.00024896,2]
[355154961,1740937843692,-500.0,0.00024896,2]
[355154963,1740937843702,-505.560152,0.00024896,2]
[355154965,1740937843712,-515.02750161,0.00024896,2]
[355154967,1740937843723,-500.0,0.00024896,2]
[355154970,1740937843733,-500.0,0.00024896,2]
[355154971,1740937843743,-500.0,0.00024896,2]
[355154973,1740937843753,-510.15846038,0.00024896,2]
[355154975,1740937843763,-500.0,0.00024896,2]
[355154977,1740937843774,-500.0,0.00024896,2]
[355154979,1740937843785,-617.83,0.00024896,2]
[355154980,1740937843795,-500.0,0.00024896,2]
[355154982,1740937843805,-500.0,0.00024896,2]
[355154984,1740937843815,-500.0,0.00024896,2]
[355154986,1740937843825,-500.0,0.00024896,2]
[355154988,1740937843836,-500.0,0.00024896,2]
[355154989,1740937843865,-703.69,0.00024896,2]
[355154991,1740937843875,-500.0,0.00024896,2]
[355154993,1740937843885,-370.99676826,0.00024896,2]
[355154995,1740937843894,-599.32,0.00024896,2]
[355154997,1740937843904,-500.0,0.00024896,2]
[355154999,1740937843918,-501.61663579,0.00024896,2]
[355155001,1740937843934,-500.0,0.00024896,2]
[355155003,1740937843943,-500.0,0.00024896,2]
[355155005,1740937843955,-500.0,0.00024896,2]
[355155007,1740937843965,-500.0,0.00024896,2]
[355155009,1740937843975,-506.85278826,0.00024896,2]
[355155011,1740937843986,-500.0,0.00024896,2]
[355155013,1740937843997,-506.79864499,0.00024896,2]
[355155015,1740937844008,-500.0,0.00024896,2]
[355155017,1740937844018,-500.0,0.00024896,2]
[355155019,1740937844028,-500.0,0.00024896,2]
[355155021,1740937844038,-500.0,0.00024896,2]
[355155023,1740937844048,-500.0,0.00024896,2]
[355155025,1740937844058,-500.0,0.00024896,2]
[355155027,1740937844068,-509.38265947,0.00024896,2]
[355155029,1740937844077,-500.0,0.00024896,2]
[355155031,1740937844088,-500.0,0.00024896,2]
[355155033,1740937844098,-500.0,0.00024896,2]
[355155035,1740937844107,-500.0,0.00024896,2]
[355155038,1740937844123,-500.0,0.00024896,2]
[355155040,1740937844133,-500.0,0.00024896,2]
[355155042,1740937844142,-500.0,0.00024896,2]
[355155043,1740937844152,-421.23127971,0.00024896,2]
[355155046,1740937844162,-500.0,0.00024896,2]
[355155050,1740937844181,-670.1,0.00024896,2]
[355155052,1740937844194,-500.0,0.00024896,2]
[355155054,1740937844205,-500.0,0.00024896,2]
[355155055,1740937844215,-637.95,0.00024896,2]
[355155057,1740937844226,-500.0,0.00024896,2]
[355155060,1740937844236,-813.8,0.00024896,2]
[355155062,1740937844247,-625.07995403,0.00024896,2]
[355155064,1740937844257,-508.96020869,0.00024896,2]
[355155066,1740937844267,-513.58,0.00024896,2]
[355155068,1740937844278,-500.0,0.00024896,2]
[355155070,1740937844288,-500.0,0.00024896,2]
[355155072,1740937844298,-500.0,0.00024896,2]
[355155074,1740937844308,-500.0,0.00024896,2]
[355155076,1740937844319,-500.0,0.00024896,2]
[355155078,1740937844329,-2192.95,0.00024896,2]
[355155080,1740937844339,-996.91,0.00024896,2]
[355155082,1740937844348,-500.0,0.00024896,2]
[355155084,1740937844358,-311.15012368,0.00024896,2]
[355155086,1740937844368,-500.0,0.00024896,2]
[355155089,1740937844379,-807.59,0.00024896,2]
[355155091,1740937844390,-500.0,0.00024896,2]
[355155093,1740937844399,-1250.18,0.00024896,2]
[355155094,1740937844409,-494.7288127,0.00024896,2]
[355155096,1740937844419,-500.0,0.00024896,2]
[355155098,1740937844434,-500.0,0.00024896,2]
[355155100,1740937844444,-703.25,0.00024896,2]
[355155102,1740937844454,-1557.45,0.00024896,2]
[355155104,1740937844467,-500.0,0.00024896,2]
[355155106,1740937844477,-330.80703194,0.00024896,2]
[355155108,1740937844488,-500.0,0.00024896,2]
[355155110,1740937844498,-500.0,0.00024896,2]
[355155112,1740937844507,-1624.15,0.00024896,2]
[355155114,1740937844517,-500.0,0.00024896,2]
[355155115,1740937844527,-1549.91,0.00024896,2]
[355155117,1740937844536,-501.34549156,0.00024896,2]
[355155119,1740937844546,-646.7788097,0.00024896,2]
[355155121,1740937844555,-1154.14,0.00024896,2]
[355155123,1740937844565,-536.47143518,0.00024896,2]
[355155125,1740937844575,-500.0,0.00024896,2]
[355155127,1740937844585,-500.0,0.00024896,2]
[355155129,1740937844595,-506.0928639,0.00024896,2]
[355155131,1740937844604,-730.08,0.00024896,2]
[355155133,1740937844615,-500.0,0.00024896,2]
[355155135,1740937844624,-856.1,0.00024896,2]
[355155137,1740937844634,-500.0,0.00024896,2]
[355155139,1740937844643,-500.0,0.00024896,2]
[355155141,1740937844658,-1218.98,0.00024896,2]
[355155143,1740937844668,-1590.11,0.00024896,2]
[355155145,1740937844681,-998.58,0.00024896,2]
[355155147,1740937844691,-523.60132899,0.00024896,2]
[355155149,1740937844702,-500.84802162,0.00024896,2]
[355155151,1740937844712,-500.0,0.00024896,2]
[355155153,1740937844721,-502.75824031,0.00024896,2]
[355155155,1740937844731,-500.0,0.00024896,2]
[355155157,1740937844742,-500.0,0.00024896,2]
[355155159,1740937844753,-761.57,0.00024896,2]
[355155161,1740937844763,-515.70644073,0.00024896,2]
[355155163,1740937844774,-500.0,0.00024896,2]
[355155165,1740937844784,-763.27,0.00024896,2]
[355155167,1740937844794,-500.0,0.00024896,2]
[355155169,1740937844804,-506.98986837,0.00024896,2]
[355155171,1740937844814,-855.19,0.00024896,2]
[355155173,1740937844824,-993.48,0.00024896,2]
[355155175,1740937844834,-500.0,0.00024896,2]
[355155177,1740937844845,-500.0,0.00024896,2]
[355155179,1740937844855,-500.0,0.00024896,2]
[355155181,1740937844864,-500.0,0.00024896,2]
[355155183,1740937844874,-925.83,0.00024896,2]
[355155185,1740937844884,-532.0,0.00024896,2]
[355155187,1740937844894,-500.0,0.00024896,2]
[355155189,1740937844903,-500.0,0.00024896,2]
[355155191,1740937844915,-604.56,0.00024896,2]
[355155193,1740937844928,-559.41,0.00024896,2]
[355155196,1740937844941,-500.0,0.00024896,2]
[355155198,1740937844951,-565.81,0.00024896,2]
[355155200,1740937844961,-500.0,0.00024896,2]
[355155201,1740937844971,-500.0,0.00024896,2]
[355155203,1740937844983,-519.74452531,0.00024896,2]
[355155205,1740937844993,-500.0,0.00024896,2]
[355155207,1740937845003,-500.0,0.00024896,2]
[355155210,1740937845016,-500.0,0.00024896,2]
[355155212,1740937845027,-500.0,0.00024896,2]
[355155213,1740937845037,-514.51756699,0.00024896,2]
[355155215,1740937845048,-500.0,0.00024896,2]
[355155218,1740937845059,-964.16,0.00024896,2]
[355155219,1740937845069,-649.62,0.00024896,2]
[355155221,1740937845079,-500.0,0.00024896,2]
[355155224,1740937845090,-500.0,0.00024896,2]
[355155226,1740937845100,-500.0,0.00024896,2]
[355155228,1740937845110,-500.0,0.00024896,2]
[355155230,1740937845120,-500.0,0.00024896,2]
[355155232,1740937845131,-500.0,0.00024896,2]
[355155234,1740937845142,-500.0,0.00024896,2]
[355155236,1740937845152,-1097.56,0.00024896,2]
[355155238,1740937845162,-500.0,0.00024896,2]
[355155240,1740937845173,-1028.47,0.00024896,2]
[355155242,1740937845189,-500.0,0.00024896,2]
[355155243,1740937845199,-868.34,0.00024896,2]
[355155246,1740937845210,-503.76009094,0.00024896,2]
[355155248,1740937845221,-500.0,0.00024896,2]
[355155250,1740937845234,-500.0,0.00024896,2]
[355155252,1740937845245,-945.74,0.00024896,2]
[355155254,1740937845256,-500.0,0.00024896,2]
[355155256,1740937845266,-500.0,0.00024896,2]
[355155258,1740937845278,-500.0,0.00024896,2]
[355155260,1740937845289,-1222.82,0.00024896,2]
[355155262,1740937845300,-500.0,0.00024896,2]
[355155264,1740937845311,-500.0,0.00024896,2]
[355155266,1740937845323,-500.0,0.00024896,2]
[355155268,1740937845335,-500.0,0.00024896,2]
[355155271,1740937845347,-883.05,0.00024896,2]
[355155273,1740937845359,-500.0,0.00024896,2]
[355155275,1740937845369,-704.4,0.00024896,2]
[355155277,1740937845380,-500.0,0.00024896,2]
[355155279,1740937845392,-6234.66,0.00024896,2]
[355155281,1740937845402,-500.0,0.00024896,2]
[355155283,1740937845413,-500.0,0.00024896,2]
[355155285,1740937845428,-557.6,0.00024896,2]
[355155287,1740937845439,-500.0,0.00024896,2]
[355155289,1740937845451,-500.0,0.00024896,2]
[355155292,1740937845462,-500.0,0.00024896,2]
[355155294,1740937845473,-500.0,0.00024896,2]
[355155296,1740937845484,-500.0,0.00024896,2]
[355155298,1740937845494,-503.26889779,0.00024896,2]
[355155300,1740937845504,-500.0,0.00024896,2]
[355155302,1740937845516,-500.0,0.00024896,2]
[355155303,1740937845527,-539.26707145,0.00024896,2]
[355155304,1740937845538,-500.0,0.00024896,2]
[355155305,1740937845549,-500.0,0.00024896,2]
[355155306,1740937845560,-1146.22,0.00024896,2]
[355155307,1740937845571,-153.11900086,0.00024896,2]
[355155308,1740937845596,-346.88099914,0.00024896,2]
[355155309,1740937845607,-500.0,0.00024896,2]
[355155310,1740937845619,-500.0,0.00024896,2]
[355155311,1740937845630,-230.08249239,0.00024896,2]
[355155312,1740937845641,-199.65110464,0.00024896,2]
[355155313,1740937845652,-500.0,0.00024896,2]
[355155314,1740937845663,-1442.71,0.00024896,2]
[355155316,1740937845675,-210.65459183,0.00024896,2]
[355155319,1740937845701,-500.0,0.00024897,2]
[355155321,1740937845713,-500.0,0.00024897,2]
[355155323,1740937845726,-500.0,0.00024897,2]
[355155325,1740937845737,-500.0,0.00024897,2]
[355155328,1740937845749,-500.0,0.00024897,2]
[355155330,1740937845762,-500.0,0.00024897,2]
[355155332,1740937845774,-500.0,0.00024897,2]
[355155334,1740937845787,-500.0,0.00024897,2]
[355155336,1740937845799,-381.4166578,0.00024897,2]
[355155340,1740937845811,-500.0,0.00024897,2]
[355155343,1740937845823,-500.0,0.00024897,2]
[355155346,1740937845836,-500.0,0.00024897,2]
[355155349,1740937845857,-500.0,0.00024897,2]
[355155351,1740937845870,-500.0,0.00024897,2]
[355155353,1740937845882,-500.0,0.00024897,2]
[355155355,1740937845895,-500.0,0.00024897,2]
[355155357,1740937845912,-500.0,0.00024897,2]
[355155359,1740937845929,-500.0,0.00024897,2]
[355155362,1740937845941,-500.0,0.00024897,2]
[355155365,1740937845954,-500.0,0.00024897,2]
[355155368,1740937845966,-301.7352583,0.00024897,2]
[355155369,1740937845978,-500.0,0.00024897,2]
[355155371,1740937845989,-500.0,0.00024897,2]
[355155373,1740937846002,-500.0,0.00024897,2]
[355155376,1740937846014,-500.0,0.00024897,2]
[355155380,1740937846028,-500.0,0.00024897,2]
[355155384,1740937846041,-500.0,0.00024897,2]
[355155387,1740937846053,-500.0,0.00024897,2]
[355155390,1740937846064,-428.99632715,0.00024897,2]
[355155393,1740937846076,-500.0,0.00024897,2]
[355155397,1740937846088,-500.0,0.00024897,2]
[355155401,1740937846098,-500.0,0.00024897,2]
[355155405,1740937846110,-500.0,0.00024897,2]
[355155408,1740937846121,-500.0,0.00024897,2]
[355155411,1740937846134,-500.0,0.00024897,2]
[355155413,1740937846146,-500.0,0.00024897,2]
[355155415,1740937846158,-500.0,0.00024897,2]
[355155417,1740937846171,-500.0,0.00024897,2]
[355155420,1740937846186,-500.0,0.00024897,2]
[355155422,1740937846199,-500.0,0.00024897,2]
[355155424,1740937846211,-500.0,0.00024897,2]
[355155426,1740937846222,-500.0,0.00024897,2]
[355155428,1740937846234,-500.0,0.00024897,2]
[355155430,1740937846245,-500.0,0.00024897,2]
[355155432,1740937846256,-500.0,0.00024897,2]
[355155434,1740937846268,-500.0,0.00024897,2]
[355155436,1740937846280,-500.0,0.00024897,2]
[355155438,1740937846291,-500.0,0.00024897,2]
[355155441,1740937846305,-470.72632584,0.00024897,2]
[355155443,1740937846317,-500.0,0.00024897,2]
[355155445,1740937846328,-500.0,0.00024897,2]
[355155447,1740937846340,-500.0,0.00024897,2]
[355155449,1740937846351,-500.0,0.00024897,2]
[355155451,1740937846362,-500.0,0.00024897,2]
[355155453,1740937846376,-500.0,0.00024897,2]
[355155455,1740937846387,-500.0,0.00024897,2]
[355155457,1740937846399,-500.0,0.00024897,2]
[355155459,1740937846410,-500.0,0.00024897,2]
[355155461,1740937846421,-500.0,0.00024897,2]
[355155464,1740937846435,-500.0,0.00024897,2]
[355155466,1740937846447,-500.0,0.00024897,2]
[355155468,1740937846458,-500.0,0.00024897,2]
[355155470,1740937846470,-502.76055947,0.00024897,2]
[355155472,1740937846482,-500.0,0.00024897,2]
[355155474,1740937846495,-500.0,0.00024897,2]
[355155476,1740937846506,-500.0,0.00024897,2]
[355155478,1740937846517,-518.68,0.00024897,2]
[355155480,1740937846531,-500.0,0.00024897,2]
[355155482,1740937846543,-500.0,0.00024897,2]
[355155485,1740937846555,-500.0,0.00024897,2]
[355155487,1740937846567,-500.0,0.00024897,2]
[355155489,1740937846578,-500.0,0.00024897,2]
[355155491,1740937846590,-500.0,0.00024897,2]
[355155493,1740937846602,-500.0,0.00024897,2]
[355155494,1740937846613,-500.0,0.00024897,2]
[355155496,1740937846625,-500.0,0.00024897,2]
[355155498,1740937846636,-500.0,0.00024897,2]
[355155500,1740937846649,-500.0,0.00024897,2]
[355155502,1740937846660,-500.0,0.00024897,2]
[355155504,1740937846672,-500.0,0.00024897,2]
[355155507,1740937846687,-500.0,0.00024897,2]
[355155509,1740937846698,-636.11,0.00024897,2]
[355155511,1740937846709,-500.0,0.00024897,2]
[355155513,1740937846720,-500.0,0.00024897,2]
[355155515,1740937846731,-500.0,0.00024897,2]
[355155517,1740937846743,-648.35,0.00024897,2]